bitfinex-derivatives/quotes_SOLF0:USTF0_20260314
["timestamp","ask_amount","ask_price","bid_price","bid_amount"]
[1773473888671,9.09367172,87.197,87.143,5.87885361]
[1773473888872,9.09367172,87.196,87.143,5.87885361]
[1773473889073,9.09367172,87.195,87.143,5.87885361]
[1773473889272,3.10584421,87.2,87.143,5.87885361]
[1773473889273,9.09367172,87.194,87.143,5.87885361]
[1773473889575,9.09367172,87.193,87.143,5.87885361]
[1773473889774,9.09367172,87.192,87.143,5.87885361]
[1773473889977,9.09367172,87.191,87.143,5.87885361]
[1773473890277,10.319,87.197,87.143,5.87885361]
[1773473890475,9.08942799,87.196,87.143,5.87885361]
[1773473890776,9.08942799,87.195,87.143,5.87885361]
[1773473891077,10.319,87.197,87.143,5.87885361]
[1773473891273,10.32,87.195,87.143,5.87885361]
[1773473892474,10.321,87.186,87.143,5.87885361]
[1773473893076,3.10584421,87.19,87.143,5.87885361]
[1773473893276,10.32,87.195,87.143,5.87885361]
[1773473893476,9.08702895,87.194,87.143,5.87885361]
[1773473893778,10.32,87.195,87.151,5.88762532]
[1773473894179,10.319,87.204,87.151,5.88762532]
[1773473895681,10.319,87.204,87.153,5.95856633]
[1773473905687,10.318,87.212,87.156,5.95202137]
[1773473905887,9.09563504,87.211,87.161,5.95202137]
[1773473906089,9.09563504,87.21,87.161,5.95202137]
[1773473906287,10.318,87.212,87.161,5.95202137]
[1773473906487,9.09568789,87.211,87.161,5.95202137]
[1773473906687,9.09568789,87.21,87.161,5.95202137]
[1773473906983,10.318,87.212,87.161,5.95202137]
[1773473907184,9.09604522,87.211,87.161,5.95202137]
[1773473907385,9.09604522,87.21,87.161,5.95202137]
[1773473907581,10.318,87.212,87.163,5.9536477]
[1773473907782,9.09589489,87.211,87.163,5.9536477]
[1773473907981,9.09589489,87.21,87.163,5.9536477]
[1773473908176,10.318,87.212,87.163,5.9536477]
[1773473908379,9.09588825,87.211,87.163,5.9536477]
[1773473908580,9.09588825,87.21,87.163,5.9536477]
[1773473908780,10.318,87.212,87.163,5.9536477]
[1773473908983,9.09588701,87.211,87.163,5.9536477]
[1773473909185,9.09588701,87.21,87.163,5.9536477]
[1773473909380,10.318,87.212,87.163,5.9536477]
[1773473909591,9.09569498,87.211,87.163,5.9536477]
[1773473909791,9.09569498,87.21,87.163,5.9536477]
[1773473910089,10.318,87.212,87.163,5.9536477]
[1773473910289,9.09562611,87.211,87.163,5.9536477]
[1773473910490,9.09562611,87.21,87.163,5.9536477]
[1773473910687,10.318,87.212,87.163,5.9536477]
[1773473910888,9.09562611,87.211,87.163,5.9536477]
[1773473911088,9.09562611,87.21,87.163,5.9536477]
[1773473911282,10.318,87.212,87.163,5.9536477]
[1773473911485,9.09295051,87.211,87.163,5.9536477]
[1773473911685,9.09295051,87.21,87.163,5.9536477]
[1773473911889,10.318,87.212,87.163,5.9536477]
[1773473912086,9.09291608,87.211,87.163,5.9536477]
[1773473912291,9.09291608,87.21,87.163,5.9536477]
[1773473912487,10.318,87.212,87.163,5.9536477]
[1773473912682,9.0921256,87.211,87.163,5.9536477]
[1773473912883,9.0921256,87.21,87.163,5.9536477]
[1773473913093,10.318,87.212,87.163,5.9536477]
[1773473913298,9.09212148,87.211,87.163,5.9536477]
[1773473913591,9.09212148,87.21,87.163,5.9536477]
[1773473913790,10.318,87.212,87.163,5.9536477]
[1773473913983,9.09211901,87.211,87.163,5.9536477]
[1773473914187,9.09211901,87.21,87.163,5.9536477]
[1773473914382,10.318,87.212,87.163,5.9536477]
[1773473914593,9.09207955,87.211,87.163,5.9536477]
[1773473914793,9.09207955,87.21,87.163,5.9536477]
[1773473914994,10.318,87.212,87.163,5.9536477]
[1773473915195,9.09199857,87.211,87.163,5.9536477]
[1773473915392,9.09199857,87.21,87.163,5.9536477]
[1773473915592,10.318,87.212,87.163,5.9536477]
[1773473915793,9.09208445,87.211,87.163,5.9536477]
[1773473915997,9.09208445,87.211,87.141,36.08]
[1773473915998,9.09208445,87.21,87.166,5.96144965]
[1773473916304,3.10615195,87.25,87.191,5.96141117]
[1773473916504,9.09163394,87.249,87.191,5.96141117]
[1773473916702,3.10615195,87.25,87.191,5.96141117]
[1773473916703,9.09163394,87.248,87.191,5.96141117]
[1773473916899,9.09163394,87.247,87.191,5.96141117]
[1773473917094,10.314,87.244,87.192,5.96141117]
[1773473924817,10.314,87.244,87.194,5.91364338]
[1773473927713,10.314,87.244,87.195,10.32]
[1773473927910,10.314,87.244,87.201,5.91322613]
[1773473928117,10.313,87.253,87.201,5.91322613]
[1773473928317,3.10615195,87.25,87.201,5.91322613]
[1773473931215,10.313,87.248,87.201,5.91322613]
[1773473933916,3.10615195,87.24,87.185,5.9033321]
[1773473935524,13.42015195,87.24,87.187,5.90237886]
[1773473936619,13.42015195,87.24,87.19,5.90333208]
[1773473937917,13.42015195,87.24,87.195,10.32]
[1773473939620,3.10615195,87.24,87.196,5.90138691]
[1773473942124,3.10615195,87.24,87.198,5.90362181]
[1773473942727,3.10615195,87.24,87.201,5.90362181]
[1773473943727,10.313,87.248,87.201,5.90362181]
[1773473945629,3.10615195,87.24,87.201,5.90362181]
[1773473957635,3.10615195,87.26,87.203,5.91512025]
[1773473957833,8.9920762,87.259,87.203,5.91512025]
[1773473958032,8.9920762,87.258,87.203,5.91512025]
[1773473958232,8.9920762,87.257,87.203,5.91512025]
[1773473958532,3.10615195,87.25,87.211,5.91971663]
[1773473958731,8.9920762,87.249,87.211,5.91971663]
[1773473958933,3.10615195,87.26,87.211,5.91971663]
[1773473959134,8.99632964,87.259,87.211,5.91971663]
[1773473959330,8.99632964,87.258,87.211,5.91971663]
[1773473959530,8.99632964,87.257,87.211,5.91971663]
[1773473959732,8.99632964,87.256,87.211,5.91971663]
[1773473959931,8.99632964,87.255,87.211,5.91971663]
[1773473960128,8.99632964,87.254,87.211,5.91971663]
[1773473960333,10.312,87.264,87.213,5.92029181]
[1773473960633,9.01170375,87.263,87.213,5.92029181]
[1773473960834,9.01170375,87.262,87.213,5.92029181]
[1773473961034,9.01170375,87.261,87.213,5.92029181]
[1773473961231,9.01170375,87.26,87.213,5.92029181]
[1773473961436,9.01170375,87.259,87.213,5.92029181]
[1773473961732,9.01170375,87.258,87.213,5.92029181]
[1773473961924,3.10615195,87.26,87.213,5.92029181]
[1773473962123,9.00999952,87.259,87.213,5.92029181]
[1773473962328,3.10615195,87.26,87.213,5.92029181]
[1773473962533,9.00755471,87.259,87.213,5.92029181]
[1773473962725,3.10615195,87.26,87.213,5.92029181]
[1773473962928,9.00755471,87.259,87.213,5.92029181]
[1773473963126,3.10615195,87.26,87.213,5.92029181]
[1773473963727,10.312,87.264,87.213,5.92029181]
[1773473963937,9.00565035,87.263,87.213,5.92029181]
[1773473964139,9.00565035,87.262,87.213,5.92029181]
[1773473964327,9.00565035,87.261,87.213,5.92029181]
[1773473964532,9.00565035,87.26,87.213,5.92029181]
[1773473964728,10.312,87.264,87.213,5.92029181]
[1773473964932,9.00422708,87.263,87.213,5.92029181]
[1773473965229,9.00422708,87.262,87.213,5.92029181]
[1773473965434,9.00422708,87.261,87.213,5.92029181]
[1773473965635,10.312,87.264,87.213,5.92029181]
[1773473965836,9.00316938,87.263,87.213,5.92029181]
[1773473966137,9.00316938,87.262,87.213,5.92029181]
[1773473966338,10.312,87.264,87.215,5.92223736]
[1773473966339,9.00316938,87.261,87.215,5.92223736]
[1773473966535,10.312,87.264,87.215,5.92223736]
[1773473966835,9.00221031,87.263,87.215,5.92223736]
[1773473967037,9.00221031,87.262,87.215,5.92223736]
[1773473967338,9.00135593,87.261,87.215,5.92223736]
[1773473967540,10.312,87.264,87.215,5.92223736]
[1773473967841,9.00135593,87.263,87.215,5.92223736]
[1773473968043,9.00135593,87.262,87.215,5.92223736]
[1773473968239,9.00135593,87.262,87.17,28.50483092]
[1773473968240,3.10615195,87.27,87.217,5.93067281]
[1773473969637,3.10200321,87.27,87.224,5.93005332]
[1773473970638,3.10200321,87.28,87.228,5.93004469]
[1773473970843,8.99438287,87.279,87.228,5.93004469]
[1773473971043,8.99438287,87.278,87.228,5.93004469]
[1773473971239,8.99438287,87.277,87.228,5.93004469]
[1773473971443,8.99438287,87.276,87.228,5.93004469]
[1773473971643,8.99438287,87.275,87.228,5.93004469]
[1773473971846,3.10200321,87.28,87.228,5.93004469]
[1773473972142,8.98413884,87.279,87.228,5.93004469]
[1773473972343,8.98413884,87.278,87.228,5.93004469]
[1773473972545,8.98413884,87.277,87.228,5.93004469]
[1773473972742,8.98413884,87.276,87.228,5.93004469]
[1773473972943,3.10200321,87.28,87.228,5.93004469]
[1773473973144,8.98269518,87.279,87.228,5.93004469]
[1773473973346,8.98269518,87.278,87.228,5.93004469]
[1773473973545,3.10200321,87.28,87.228,5.93004469]
[1773473973546,8.98269518,87.277,87.228,5.93004469]
[1773473973846,8.98269518,87.276,87.228,5.93004469]
[1773473974046,3.10200321,87.28,87.228,5.93004469]
[1773473974248,8.98117566,87.279,87.228,5.93004469]
[1773473974547,8.98117566,87.278,87.228,5.93004469]
[1773473974747,8.98117566,87.277,87.228,5.93004469]
[1773473975047,3.10200321,87.28,87.228,5.93004469]
[1773473975243,8.9798261,87.279,87.228,5.93004469]
[1773473975447,8.9798261,87.278,87.228,5.93004469]
[1773473975648,8.9798261,87.277,87.228,5.93004469]
[1773473975946,3.10200321,87.28,87.23,5.93068438]
[1773473976141,8.97874598,87.279,87.23,5.93068438]
[1773473976345,8.97874598,87.278,87.23,5.93068438]
[1773473976538,3.10200321,87.28,87.23,5.93068438]
[1773473976744,8.97770879,87.279,87.23,5.93068438]
[1773473976944,8.97770879,87.278,87.23,5.93068438]
[1773473977250,3.10200321,87.28,87.23,5.93068438]
[1773473978148,3.10200321,87.28,87.232,5.93084154]
[1773473978546,3.10200321,87.29,87.232,5.93084154]
[1773473979545,3.10200321,87.29,87.246,5.93125403]
[1773473990863,36.08,87.315,87.236,5.93649375]
[1773473990864,3.10200321,87.27,87.236,5.93649375]
[1773474003771,3.10200321,87.26,87.227,5.98396385]
[1773474005267,3.10200321,87.26,87.218,6.09603768]
[1773474005469,3.10200321,87.25,87.207,6.09603768]
[1773474005670,3.10200321,87.24,87.207,6.09603768]
[1773474007281,3.10200321,87.25,87.207,6.09603768]
[1773474019892,13.41400321,87.26,87.208,6.10276493]
[1773474021193,3.10200321,87.26,87.213,6.10501322]
[1773474021594,3.10200321,87.27,87.213,6.10501322]
[1773474022298,3.10200321,87.27,87.224,6.10502241]
[1773474025004,10.31,87.277,87.224,6.10502241]
[1773474025302,3.10200321,87.27,87.224,6.10502241]
[1773474025803,3.10200321,87.27,87.226,6.12098287]
[1773474031604,3.10260966,87.27,87.226,6.12098287]
[1773474032308,3.10260966,87.28,87.228,6.13000597]
[1773474032508,9.02127553,87.279,87.228,6.13000597]
[1773474032707,3.10260966,87.28,87.228,6.13000597]
[1773474032902,9.02118579,87.279,87.228,6.13000597]
[1773474033102,3.10260966,87.28,87.228,6.13000597]
[1773474033304,9.02271878,87.279,87.228,6.13000597]
[1773474033501,9.02271878,87.278,87.23,6.13000628]
[1773474033808,3.10260966,87.28,87.23,6.13000628]
[1773474034003,9.02300899,87.279,87.23,6.13000628]
[1773474034208,9.02300899,87.278,87.23,6.13000628]
[1773474034507,9.02300899,87.277,87.23,6.13000628]
[1773474034709,3.10260966,87.28,87.23,6.13000628]
[1773474034909,9.02498339,87.279,87.23,6.13000628]
[1773474035110,9.02498339,87.278,87.23,6.13000628]
[1773474035310,9.02498339,87.277,87.23,6.13000628]
[1773474035510,9.02498339,87.276,87.23,6.13000628]
[1773474035815,3.10260966,87.28,87.23,6.13000628]
[1773474036013,9.02714034,87.279,87.23,6.13000628]
[1773474036213,9.02714034,87.278,87.23,6.13000628]
[1773474036418,9.02714034,87.277,87.23,6.13000628]
[1773474036618,9.02714034,87.276,87.23,6.13000628]
[1773474036818,3.10260966,87.27,87.23,6.13000628]
[1773474042321,3.10260966,87.28,87.23,6.13000628]
[1773474042522,9.02906501,87.279,87.23,6.13000628]
[1773474042724,9.02906501,87.278,87.23,6.13000628]
[1773474042926,9.02906501,87.277,87.23,6.13000628]
[1773474043120,9.02906501,87.276,87.23,6.13000628]
[1773474043319,9.02906501,87.275,87.23,6.13000628]
[1773474043519,3.10260966,87.28,87.23,6.13000628]
[1773474043726,9.02940075,87.279,87.23,6.13000628]
[1773474043914,9.02940075,87.278,87.23,6.13000628]
[1773474044221,9.02940075,87.277,87.23,6.13000628]
[1773474044422,9.02940075,87.276,87.23,6.13000628]
[1773474044623,9.02940075,87.275,87.23,6.13000628]
[1773474044819,3.10260966,87.28,87.23,6.13000628]
[1773474045025,9.02965308,87.279,87.23,6.13000628]
[1773474045222,9.02965308,87.278,87.23,6.13000628]
[1773474045424,9.02965308,87.277,87.23,6.13000628]
[1773474045621,9.02965308,87.276,87.23,6.13000628]
[1773474045923,9.02965308,87.275,87.23,6.13000628]
[1773474046225,3.10260966,87.28,87.23,6.13000628]
[1773474046526,9.03008095,87.279,87.23,6.13000628]
[1773474046720,9.03008095,87.278,87.23,6.13000628]
[1773474046920,9.03008095,87.277,87.23,6.13000628]
[1773474047123,9.03008095,87.276,87.23,6.13000628]
[1773474047420,9.03008095,87.275,87.23,6.13000628]
[1773474047722,3.10260966,87.28,87.23,6.13000628]
[1773474047923,9.0304452,87.279,87.23,6.13000628]
[1773474048120,9.0304452,87.278,87.23,6.13000628]
[1773474048319,9.0304452,87.277,87.23,6.13000628]
[1773474048514,9.0304452,87.276,87.23,6.13000628]
[1773474048819,9.0304452,87.275,87.23,6.13000628]
[1773474049016,3.10260966,87.28,87.23,6.13000628]
[1773474049217,9.03079854,87.279,87.23,6.13000628]
[1773474049522,9.03079854,87.278,87.23,6.13000628]
[1773474049718,9.03079854,87.277,87.23,6.13000628]
[1773474050016,9.03079854,87.276,87.23,6.13000628]
[1773474050218,9.03079854,87.275,87.23,6.13000628]
[1773474050418,3.10260966,87.28,87.23,6.13000628]
[1773474050618,9.03069593,87.279,87.23,6.13000628]
[1773474050819,9.03069593,87.278,87.23,6.13000628]
[1773474051020,9.03069593,87.277,87.23,6.13000628]
[1773474051317,9.03069593,87.276,87.23,6.13000628]
[1773474051518,9.03069593,87.275,87.23,6.13000628]
[1773474051818,3.10260966,87.27,87.23,6.13000628]
[1773474052419,3.10260966,87.27,87.232,6.12055476]
[1773474052619,3.10260966,87.28,87.232,6.12055476]
[1773474052922,9.03000095,87.279,87.232,6.12055476]
[1773474053123,3.10260966,87.28,87.232,6.12055476]
[1773474055425,3.10260966,87.28,87.234,6.11238229]
[1773474060222,9.0324105,87.279,87.234,6.11238229]
[1773474060424,3.10260966,87.28,87.234,6.11238229]
[1773474060625,9.0324105,87.279,87.234,6.11238229]
[1773474060821,3.10260966,87.28,87.234,6.11238229]
[1773474061032,9.0324105,87.279,87.234,6.11238229]
[1773474061326,9.03631646,87.278,87.234,6.11238229]
[1773474061530,3.10260966,87.28,87.234,6.11238229]
[1773474061728,9.03631646,87.279,87.234,6.11238229]
[1773474061928,9.03631646,87.278,87.234,6.11238229]
[1773474062130,3.10260966,87.28,87.234,6.11238229]
[1773474062331,9.03822721,87.279,87.234,6.11238229]
[1773474062524,9.03822721,87.278,87.234,6.11238229]
[1773474062728,3.10260966,87.28,87.234,6.11238229]
[1773474062928,9.03822721,87.279,87.234,6.11238229]
[1773474063127,9.03822721,87.278,87.234,6.11238229]
[1773474063333,9.04054219,87.277,87.234,6.11238229]
[1773474063636,3.10260966,87.28,87.234,6.11238229]
[1773474063824,9.04054219,87.279,87.234,6.11238229]
[1773474064131,9.04054219,87.278,87.234,6.11238229]
[1773474064324,9.04054219,87.277,87.234,6.11238229]
[1773474064525,9.04054219,87.276,87.234,6.11238229]
[1773474064726,9.04054219,87.275,87.234,6.11238229]
[1773474064924,3.10260966,87.28,87.234,6.11238229]
[1773474065127,9.04343069,87.279,87.234,6.11238229]
[1773474065332,9.04343069,87.278,87.234,6.11238229]
[1773474065532,9.04343069,87.277,87.234,6.11238229]
[1773474065729,9.04343069,87.276,87.234,6.11238229]
[1773474066034,9.04343069,87.275,87.234,6.11238229]
[1773474066234,9.04743963,87.274,87.234,6.11238229]
[1773474066427,3.10260966,87.28,87.234,6.11238229]
[1773474066830,9.04743963,87.279,87.234,6.11238229]
[1773474067028,9.04743963,87.278,87.234,6.11238229]
[1773474067335,9.04743963,87.277,87.234,6.11238229]
[1773474067634,9.04743963,87.276,87.234,6.11238229]
[1773474067835,9.04743963,87.275,87.234,6.11238229]
[1773474068035,9.04743963,87.274,87.234,6.11238229]
[1773474068237,9.04845807,87.273,87.234,6.11238229]
[1773474068537,3.10260966,87.28,87.234,6.11238229]
[1773474068737,9.04838327,87.279,87.234,6.11238229]
[1773474068937,9.04838327,87.278,87.234,6.11238229]
[1773474069137,9.04838327,87.277,87.234,6.11238229]
[1773474069334,9.04838327,87.276,87.234,6.11238229]
[1773474069637,9.04838327,87.275,87.234,6.11238229]
[1773474069836,9.04838327,87.274,87.234,6.11238229]
[1773474070137,9.04838327,87.273,87.234,6.11238229]
[1773474070337,3.10260966,87.28,87.234,6.11238229]
[1773474070639,9.04887531,87.279,87.234,6.11238229]
[1773474070837,9.04887531,87.278,87.234,6.11238229]
[1773474071038,9.04887531,87.277,87.234,6.11238229]
[1773474071338,9.04887531,87.276,87.234,6.11238229]
[1773474071543,9.04887531,87.275,87.234,6.11238229]
[1773474071838,9.04887531,87.274,87.234,6.11238229]
[1773474072038,9.04887531,87.273,87.234,6.11238229]
[1773474072235,3.10260966,87.28,87.234,6.11238229]
[1773474072534,9.04942172,87.279,87.234,6.11238229]
[1773474072731,9.04942172,87.278,87.234,6.11238229]
[1773474072934,9.04942172,87.277,87.234,6.11238229]
[1773474073134,9.04942172,87.276,87.234,6.11238229]
[1773474073330,9.04942172,87.275,87.234,6.11238229]
[1773474073529,9.04942172,87.274,87.234,6.11238229]
[1773474073739,9.04942172,87.273,87.234,6.11238229]
[1773474073940,3.10260966,87.28,87.234,6.11238229]
[1773474074238,9.04978152,87.279,87.234,6.11238229]
[1773474074438,9.04978152,87.278,87.234,6.11238229]
[1773474074637,9.04978152,87.277,87.234,6.11238229]
[1773474074937,3.10260966,87.28,87.234,6.11238229]
[1773474074938,9.04978152,87.276,87.234,6.11238229]
[1773474075136,9.04978152,87.275,87.234,6.11238229]
[1773474075437,9.04978152,87.274,87.234,6.11238229]
[1773474075636,9.04978152,87.273,87.234,6.11238229]
[1773474075841,3.10260966,87.28,87.234,6.11238229]
[1773474076041,9.05075093,87.279,87.234,6.11238229]
[1773474076338,9.05075093,87.278,87.234,6.11238229]
[1773474076540,9.05075093,87.277,87.234,6.11238229]
[1773474076742,9.05075093,87.276,87.234,6.11238229]
[1773474076941,9.05075093,87.275,87.234,6.11238229]
[1773474077142,9.05075093,87.274,87.234,6.11238229]
[1773474077342,9.05075093,87.273,87.234,6.11238229]
[1773474077535,9.05075093,87.272,87.234,6.11238229]
[1773474077736,13.41260966,87.28,87.234,6.11238229]
[1773474077941,9.0515674,87.279,87.234,6.11238229]
[1773474078140,9.0515674,87.278,87.234,6.11238229]
[1773474078446,9.0515674,87.277,87.234,6.11238229]
[1773474078647,3.10260966,87.27,87.234,6.11238229]
[1773474079446,10.311,87.266,87.211,6.14626811]
[1773474079650,3.10260966,87.24,87.181,6.14626811]
[1773474080552,3.10260966,87.24,87.192,6.14559444]
[1773474082051,3.10260966,87.24,87.201,6.141707]
[1773474090057,10.311,87.265,87.206,6.14948534]
[1773474090257,3.10260966,87.25,87.206,6.14948534]
[1773474091453,3.10260966,87.27,87.211,6.12857526]
[1773474092256,3.10260966,87.26,87.211,6.12857526]
[1773474092665,3.10260966,87.26,87.217,6.13091598]
[1773474093763,3.10278176,87.26,87.217,6.13091598]
[1773474094463,3.10278176,87.25,87.217,6.13091598]
[1773474097364,3.10278176,87.26,87.217,6.13091598]
[1773474097564,10.312,87.258,87.217,6.13091598]
[1773474097760,3.10278176,87.23,87.197,6.13970607]
[1773474098368,3.10278176,87.24,87.197,6.13970607]
[1773474111279,3.10278176,87.24,87.198,6.16370669]
[1773474111576,36.08,87.271,87.143,22.33246142]
[1773474111577,3.10278176,87.21,87.143,22.33246142]
[1773474111778,3.10278176,87.18,87.143,22.33246142]
[1773474111972,9.01997244,87.204,87.143,22.33246142]
[1773474112177,10.70160837,87.225,87.143,22.33246142]
[1773474112178,3.10278176,87.19,87.143,22.33246142]
[1773474112377,3.10278176,87.2,87.143,22.33246142]
[1773474112579,3.10278176,87.19,87.143,22.33246142]
[1773474113778,3.10278176,87.21,87.151,22.31200156]
[1773474114680,3.10278176,87.21,87.154,22.3627162]
[1773474116583,3.10278176,87.21,87.106,34.38]
[1773474116584,10.316,87.23,87.161,22.35455194]
[1773474116783,3.10278176,87.22,87.161,22.35455194]
[1773474117587,3.10278176,87.22,87.164,22.35687968]
[1773474120288,3.10278176,87.21,87.164,22.35687968]
[1773474127989,10.316,87.224,87.171,22.19180349]
[1773474129594,10.316,87.224,87.172,22.20224834]
[1773474130697,10.316,87.224,87.174,22.13200982]
[1773474131192,3.10278176,87.23,87.174,22.13200982]
[1773474131393,3.10278176,87.23,87.176,22.10720361]
[1773474132596,10.316,87.229,87.179,22.11171016]
[1773474138095,3.10278176,87.23,87.181,10.321]
[1773474138402,10.315,87.238,87.182,22.08050595]
[1773474139303,10.315,87.236,87.184,22.08041511]
[1773474140300,10.315,87.234,87.184,22.08041511]
[1773474141204,9.48872698,87.233,87.184,22.08041511]
[1773474141404,10.315,87.234,87.184,22.08041511]
[1773474141596,9.48872379,87.233,87.184,22.08041511]
[1773474141797,10.315,87.234,87.184,22.08041511]
[1773474142002,9.48872379,87.233,87.184,22.08041511]
[1773474142202,9.49196129,87.232,87.184,22.08041511]
[1773474142399,10.315,87.234,87.184,22.08041511]
[1773474142600,9.49196129,87.233,87.184,22.08041511]
[1773474142896,9.49196129,87.232,87.184,22.08041511]
[1773474143093,10.315,87.234,87.184,22.08041511]
[1773474143297,9.49239358,87.233,87.184,22.08041511]
[1773474143498,9.49239358,87.232,87.184,22.08041511]
[1773474143696,10.315,87.234,87.184,22.08041511]
[1773474143900,9.49268647,87.233,87.184,22.08041511]
[1773474144103,9.49268647,87.232,87.184,22.08041511]
[1773474144302,10.315,87.234,87.184,22.08041511]
[1773474144303,9.49268647,87.231,87.184,22.08041511]
[1773474144501,10.315,87.234,87.184,22.08041511]
[1773474144803,9.4935228,87.233,87.184,22.08041511]
[1773474144994,9.4935228,87.232,87.184,22.08041511]
[1773474145196,10.316,87.228,87.184,22.08041511]
[1773474145505,9.49396669,87.227,87.184,22.08041511]
[1773474145706,3.10278176,87.23,87.184,22.08041511]
[1773474146007,10.316,87.224,87.184,22.08041511]
[1773474146207,3.10278176,87.22,87.184,22.08041511]
[1773474147306,10.316,87.224,87.184,22.08041511]
[1773474158005,10.315,87.234,87.184,22.08041511]
[1773474158207,9.26406585,87.233,87.184,22.08041511]
[1773474158406,9.26406585,87.232,87.184,22.08041511]
[1773474158707,9.26406585,87.231,87.184,22.08041511]
[1773474158910,9.26406585,87.23,87.184,22.08041511]
[1773474159108,9.26406585,87.229,87.184,22.08041511]
[1773474159310,10.315,87.234,87.184,22.08041511]
[1773474159512,9.26632179,87.233,87.184,22.08041511]
[1773474159810,9.26632179,87.232,87.184,22.08041511]
[1773474160011,9.26632179,87.231,87.184,22.08041511]
[1773474160212,9.26632179,87.23,87.184,22.08041511]
[1773474160413,9.26632179,87.229,87.184,22.08041511]
[1773474160608,9.26632179,87.228,87.184,22.08041511]
[1773474160806,10.315,87.234,87.184,22.08041511]
[1773474161007,9.26798807,87.233,87.184,22.08041511]
[1773474161212,9.26798807,87.232,87.184,22.08041511]
[1773474161518,9.26798807,87.231,87.184,22.08041511]
[1773474161715,9.26798807,87.23,87.184,22.08041511]
[1773474161912,9.26798807,87.229,87.186,22.06237872]
[1773474162111,9.26798807,87.228,87.191,22.06237872]
[1773474162319,9.27036324,87.227,87.191,22.06237872]
[1773474162516,10.314,87.244,87.191,22.06237872]
[1773474162716,10.315,87.238,87.191,22.06237872]
[1773474163017,9.27050312,87.237,87.191,22.06237872]
[1773474163320,9.27050312,87.236,87.191,22.06237872]
[1773474163513,9.27050312,87.235,87.191,22.06237872]
[1773474163818,9.27050312,87.234,87.191,22.06237872]
[1773474164018,9.27050312,87.233,87.191,22.06237872]
[1773474164219,9.27050312,87.232,87.191,22.06237872]
[1773474164417,10.315,87.238,87.191,22.06237872]
[1773474164418,9.27050312,87.231,87.191,22.06237872]
[1773474164621,9.27050312,87.23,87.191,22.06237872]
[1773474164919,9.27050312,87.229,87.191,22.06237872]
[1773474165223,9.27050312,87.228,87.191,22.06237872]
[1773474165423,9.27050312,87.227,87.191,22.06237872]
[1773474165616,10.315,87.238,87.191,22.06237872]
[1773474165918,9.27499458,87.237,87.191,22.06237872]
[1773474166224,9.27499458,87.236,87.191,22.06237872]
[1773474166416,9.27499458,87.235,87.193,22.05331274]
[1773474166618,10.313,87.248,87.193,22.05331274]
[1773474166818,9.27514207,87.247,87.193,22.05331274]
[1773474167017,9.27514207,87.246,87.193,22.05331274]
[1773474167220,9.27514207,87.245,87.193,22.05331274]
[1773474167420,9.27514207,87.244,87.193,22.05331274]
[1773474167621,9.27514207,87.243,87.196,22.05282983]
[1773474167823,9.27514207,87.242,87.196,22.05282983]
[1773474168015,9.27514207,87.241,87.196,22.05282983]
[1773474168322,9.27514207,87.24,87.196,22.05282983]
[1773474168522,9.27514207,87.239,87.196,22.05282983]
[1773474168822,9.27514207,87.238,87.196,22.05282983]
[1773474169022,9.27514207,87.237,87.196,22.05282983]
[1773474169223,9.27514207,87.236,87.196,22.05282983]
[1773474169422,9.27514207,87.235,87.196,22.05282983]
[1773474169623,10.313,87.248,87.196,22.05282983]
[1773474169823,9.27081475,87.247,87.196,22.05282983]
[1773474170018,9.27081475,87.246,87.196,22.05282983]
[1773474170220,9.27081475,87.245,87.201,22.01247039]
[1773474170424,10.312,87.257,87.201,22.01247039]
[1773474170425,9.27081475,87.244,87.201,22.01247039]
[1773474170620,9.27081475,87.243,87.201,22.01247039]
[1773474170922,10.312,87.257,87.201,22.01247039]
[1773474171123,9.27291803,87.256,87.201,22.01247039]
[1773474171322,9.27291803,87.255,87.201,22.01247039]
[1773474171623,9.27291803,87.254,87.206,22.01246973]
[1773474171823,9.27291803,87.253,87.206,22.01246973]
[1773474172025,9.27291803,87.252,87.206,22.01246973]
[1773474172224,9.27291803,87.251,87.206,22.01246973]
[1773474172524,9.27291803,87.25,87.206,22.01246973]
[1773474172725,9.27291803,87.25,87.205,10.318]
[1773474172726,9.27291803,87.249,87.211,22.01503501]
[1773474172926,9.27291803,87.249,87.21,3.10517122]
[1773474172927,10.311,87.266,87.213,22.01503501]
[1773474173124,9.27348741,87.265,87.213,22.01503501]
[1773474173424,9.27348741,87.264,87.213,22.01503501]
[1773474173625,9.27348741,87.263,87.213,22.01503501]
[1773474173825,9.27348741,87.262,87.213,22.01503501]
[1773474174024,9.27348741,87.261,87.213,22.01503501]
[1773474174326,9.27348741,87.26,87.213,22.01503501]
[1773474174525,9.27348741,87.259,87.213,22.01503501]
[1773474174725,9.27348741,87.258,87.213,22.01503501]
[1773474174926,9.27348741,87.257,87.213,22.01503501]
[1773474175126,9.27348741,87.256,87.213,22.01503501]
[1773474175426,10.311,87.266,87.213,22.01503501]
[1773474175622,9.26513162,87.265,87.213,22.01503501]
[1773474175917,9.26513162,87.264,87.213,22.01503501]